Cogmind - Beta 13 @@@ ROGUE MODE // 2024.07.03 @ 13:09:20 Player: celerysam Result: Destroyed by H-66 Slayer with Gauss Rifle Performance ------------- Evolutions (4) 2000 Regions Visited (6) 1200 Robots Destroyed (45) 225 Value Destroyed (1979) 1979 Prototype IDs (5) 100 Alien Tech Used (0) 0 Bonus (700) 700 TOTAL SCORE: 6204 Bonus ------- Entered Garrisons 200 Used RIF Installer 500 Cogmind --------- Core Integrity 0/850 Matter 165/300 Energy 300/300 System Corruption 7% Temperature Cool (0) Movement Walking (120) Location -6/Factory Parts ------- > --- POWER (2) -------- Enhanced Nuclear Core > --- PROPULSION (6) --- Armored Leg Combat Airjet > --- UTILITY (5) ------ Advanced Sensor Array Advanced Signal Interpreter Hacking Suite Relay Coupler [Specialist] (17) > --- WEAPON (2) ------- Great Axe > --- INVENTORY (5) ---- Power Amplifier Cloaking Device Relay Coupler [Hunter] (16) Relay Coupler [Behemoth] (9) Heavy Missile Launcher Peak State ------------ > --- POWER ------------ Light Angular Momentum Engine Light Angular Momentum Engine > --- PROPULSION ------- Carbon-fiber Leg Carbon-fiber Leg Carbon-fiber Leg > --- UTILITY ---------- Medium Storage Unit Machine Analyzer Transmission Jammer Hacking Suite Relay Coupler [Specialist] > --- WEAPON ----------- Plasma Rifle Hypervelocity Gauss Rifle > --- INVENTORY -------- Power Amplifier Improved Thermal Generator Gravity Neutralizer Advanced Sensor Array Advanced Signal Interpreter Cloaking Device Relay Coupler [Hunter] Relay Coupler [Behemoth] Heavy Missile Launcher Remote Datajack [Rating: 50] Favorites ----------- Power Light Angular Momentum Engine Engine Light Angular Momentum Engine Power Core Light Nuclear Core Propulsion Compact Wheel Treads Improved Medium Treads Leg Carbon-fiber Leg Wheel Compact Wheel Hover Unit Hover Unit Flight Unit Cesium-ion Thruster Utility Hacking Suite Device Weight Redist. System Storage Small Storage Unit Processor Machine Analyzer Hackware Hacking Suite Weapon Medium Laser Energy Gun Medium Laser Energy Cannon Plasma Cannon Ballistic Gun High-powered Shotgun Ballistic Cannon Improved Light Cannon Launcher Heavy Missile Launcher Special Weapon Remote Datajack Impact Weapon Maul Slashing Weapon Segregator Build | -11 -10 -9 -8 -8 -7 -6 ------- Run | Yrd Mat Mat Mat Gar Fac Fac Slots Evolved 8 | . . 2 2 . 2 2 Power 1 | . . . 1 . . . Propulsion 4 | . . 2 . . 2 . Utility 3 | . . . 1 . . 2 Weapon . | . . . . . . . Parts Attached 111 | 6 5 13 5 28 18 36 Power 18 | 1 . 3 1 4 2 7 Engine 13 | 1 . 3 . 2 1 6 Core 5 | . . . 1 2 1 1 Reactor . | . . . . . . . Propulsion 41 | 2 1 6 2 14 7 9 Treads 2 | . . . . . 1 1 Leg 11 | . . . 1 2 3 5 Wheel 15 | 2 1 4 1 5 2 . Hover 7 | . . 2 . 2 1 2 Flight 6 | . . . . 5 . 1 Utility 21 | 1 3 . 1 5 4 7 Device 12 | . 1 . 1 4 2 4 Storage 4 | 1 2 . . . . 1 Processor 2 | . . . . . . 2 Hackware 3 | . . . . 1 2 . Protection . | . . . . . . . Artifact . | . . . . . . . Weapon 31 | 2 1 4 1 5 5 13 Energy Gun 14 | 2 . 1 . 3 3 5 Energy Cannon 5 | . . 2 . 1 . 2 Ballistic Gun 2 | . . . 1 . . 1 Ballistic Cannon 4 | . 1 1 . . 1 1 Launcher 1 | . . . . . . 1 Special Weapon 1 | . . . . . . 1 Impact Weapon 2 | . . . . . 1 1 Slashing Weapon 2 | . . . . 1 . 1 Piercing Weapon . | . . . . . . . Special Melee Weapon . | . . . . . . . Unidentified Prototypes 5 | . . . . . 2 3 Parts Lost 55 | . . 7 1 14 9 24 Power 11 | . . 1 . 4 2 4 Propulsion 24 | . . 3 1 5 5 10 Utility 6 | . . . . 2 2 2 Weapon 14 | . . 3 . 3 . 8 Highest Loss Streak 8 | . . 4 1 8 5 7 To Critical Strikes . | . . . . . . . Average Slot Usage (%) 69 | . 88 93 92 81 77 50 Engine 6 | . 14 11 9 5 4 4 Core 1 | . . . 3 5 3 . Leg 2 | . . . . . 9 2 Wheel 12 | . 28 34 17 21 4 . Hover 2 | . . 4 18 1 2 1 Flight 2 | . . . . 7 11 . Device 8 | . 3 11 18 16 11 5 Storage 6 | . 14 11 9 5 . 4 Processor 2 | . . . . . . 5 Hackware 7 | . . . . . 9 13 Energy Gun 6 | . 25 5 . 7 3 3 Energy Cannon 1 | . . 4 12 1 . 1 Ballistic Gun 1 | . . . 4 5 . . Ballistic Cannon 3 | . 2 11 . . 3 1 Impact Weapon 1 | . . . . . 6 1 Naked Turns 3 | . . . . 3 . . Heaviest Build 39 | 14 16 20 25 25 25 39 Greatest Support 66 | 32 38 60 34 66 53 45 Greatest Overweight (x) 10 | 1 . 1 1 1 1 10 Average Overweight (x) . | . . . . . . 2 Largest Inventory Capacity 10 | 8 8 8 8 8 5 10 Average Capacity 7 | 7 7 8 8 6 5 8 Most Carried 10 | 8 8 8 8 8 5 10 Average Carried 7 | 4 6 7 7 6 4 7 Final Capacity 8 | 8 8 8 8 5 5 5 Final Carried 8 | 6 8 5 8 3 4 5 Class Distribution -------------------- 87% | Mutant 6% | Scavenger-Mutant 4% | Scavenger-Sprinter Dominant Class ---------------- Mutant | -10/Materials Mutant | -9/Materials Mutant | -8/Materials Mutant | -8/Garrison Mutant | -7/Factory Mutant | -6/Factory Resources | -11 -10 -9 -8 -8 -7 -6 ----------- Run | Yrd Mat Mat Mat Gar Fac Fac Matter Collected 1386 | 184 76 283 35 180 116 512 Remotely . | . . . . . . . Salvage Created 1522 | . 129 548 35 141 132 537 Parts 72 | . 6 27 2 11 5 21 Haulers Intercepted . | . . . . . . . Recyclers Shooed . | . . . . . . . Parts Field Recycled . | . . . . . . . Retrieved Matter . | . . . . . . . Parts Self-Destructed . | . . . . . . . Prevented . | . . . . . . . Kills | -11 -10 -9 -8 -8 -7 -6 ------- Run | Yrd Mat Mat Mat Gar Fac Fac Combat Hostiles Destroyed 39 | . 3 13 1 6 4 12 Melee 1 | . . . . . 1 . Guns 17 | . 3 1 1 6 . 6 Cannons 15 | . . 11 . . 2 2 AOE 2 | . . 1 . . . 1 Classes Destroyed 8 | . 2 3 1 1 . 1 Worker 2 | . 1 . . . . 1 Builder 1 | . . 1 . . . . Watcher 3 | . . 2 . . . 1 Swarmer 10 | . . . . 3 2 5 Grunt 19 | . 3 8 . 3 . 5 Sentry 7 | . . 5 . . 2 . Hunter 1 | . . . 1 . . . Programmer 2 | . . . . . . 2 Best Kill Streak 4 | . 2 4 1 3 2 2 Combat Bots Only 4 | . 2 4 1 3 2 2 Max Kills in Single Turn 1 | . 1 1 1 1 1 1 Gunslinging . | . . . . . . . Exploded 1 | . . 1 . . . 1 Melee 1 | . . . . . 1 . Uniques/NPCs Destroyed . | . . . . . . . Combat | -11 -10 -9 -8 -8 -7 -6 -------- Run | Yrd Mat Mat Mat Gar Fac Fac Hostile Shots Fired 761 | . 32 65 4 154 233 273 Missed 237 | . 9 17 1 53 99 58 Damage Taken 7080 | . 256 674 52 1350 1312 3436 Core 1619 | . 54 64 . 439 196 866 Absorbed by Shields 35 | . . . . 35 . . Core Remaining (%) 70 | 100 78 84 . 20 72 . Volleys Fired 168 | . 17 38 2 30 14 67 Largest 2 | . 2 2 2 2 1 2 Hottest 123 | . 100 104 85 123 80 93 Shots Fired 233 | . 34 68 4 44 14 69 Gun 142 | . 34 21 2 42 1 42 Cannon 87 | . . 47 2 2 13 23 Launcher 4 | . . . . . . 4 Special . | . . . . . . . Kinetic 85 | . . 37 2 25 13 8 Thermal 123 | . 34 21 2 11 1 54 Explosive 4 | . . . . . . 4 Electromagnetic 21 | . . 10 . 8 . 3 Robot Hit Streak 10 | . 3 10 5 6 4 10 Robot Miss Streak 5 | . 2 3 1 5 2 4 Penetration Max . | . . . . . . . Secondary Targets 4 | . 2 . . 2 . . Max Gunslinging Chain 1 | . 1 . . 1 . . Shots Hit Robots 157 | . 16 43 3 29 13 53 Core Hits 68 | . 7 20 3 12 7 19 Critical Kills 3 | . . . . . . 3 Critical Parts Destroyed 3 | . . . . . . 3 Critical Strikes 13 | . 2 2 . 1 . 8 Burn 5 | . 2 1 . . . 2 Meltdown 1 | . . . . . . 1 Destroy 4 | . . . . 1 . 3 Blast 1 | . . 1 . . . . Smash 2 | . . . . . . 2 Melee Attacks 15 | . . . . 1 4 10 Thermal 1 | . . . . 1 . . Impact 13 | . . . . . 4 9 Slashing 1 | . . . . . . 1 Piercing . | . . . . . . . Sneak Attacks 1 | . . . . . . 1 Combat Hostiles . | . . . . . . . Follow-up Attacks . | . . . . . . . Damage Inflicted 3612 | . 200 986 51 620 375 1380 Guns 1590 | . 200 195 33 525 23 614 Cannons 1321 | . . 645 18 18 245 395 Explosions 341 | . . 146 . 77 . 118 Melee 355 | . . . . . 107 248 Ramming 5 | . . . . . . 5 Kinetic 1151 | . . 436 33 397 245 40 Thermal 1522 | . 200 270 18 102 23 909 Explosive 266 | . . 71 . 77 . 118 Electromagnetic 313 | . . 209 . 44 . 60 Impact 276 | . . . . . 107 169 Slashing 79 | . . . . . . 79 Piercing . | . . . . . . . Highest Corruption 7 | . . 2 . . . 7 Average Corruption 4 | . . 2 . . . 6 Corruption Purged . | . . . . . . . Corruption Blocked . | . . . . . . . Effects 32 | . . 7 . . . 25 Message Errors 7 | . . 1 . . . 6 Matter Fused 5 | . . 1 . . . 4 Heat Flow Errors 6 | . . 1 . . . 5 Energy Discharges 2 | . . . . . . 2 Data Loss (minor) 7 | . . 1 . . . 6 Misfires 4 | . . 3 . . . 1 Alerts 1 | . . . . . . 1 Overload Shots . | . . . . . . . Overflow Damage 188 | . . 44 . 23 21 100 Projectiles 5 | . . . . . . 5 Explosions 67 | . . 44 . 23 . . Melee 116 | . . . . . 21 95 Knockbacks 11 | . . 4 . . 4 3 Impact 2 | . . . . . . 2 Kinetic 5 | . . 3 . . 2 . Secondary 4 | . . 1 . . 2 1 Self-Inflicted Damage 263 | . . 107 . 155 . 1 Shots 3 | . . 2 . 1 . . Rammed 5 | . . . . . . 5 Targets Rammed 5 | . . . . . . 5 Kicked . | . . . . . . . Crushed . | . . . . . . . Highest Temperature 356 | . 356 250 . 57 30 325 Average Temperature 91 | . 120 87 . 19 14 92 Received Heat Transfer 2070 | . 138 267 . 507 480 678 Effects 1 | . 1 . . . . . Energy Bleed 1 | . 1 . . . . . Siege Activations . | . . . . . . . Robots Corrupted . | . . . . . . . Combat Hostiles . | . . . . . . . Parts Fried . | . . . . . . . Impact Corruptions 5 | . . . . . 1 4 Robots Melted 3 | . . . . . . 3 Combat Hostiles 2 | . . . . . . 2 Parts Melted 9 | . 2 . . . . 7 Heat Transferred 3709 | . 740 692 37 222 50 1968 Parts Sabotaged 10 | . . . . 10 . . Parts Stolen . | . . . . . . . Parts Stripped . | . . . . . . . Power Chain Reactions 1 | . . 1 . . . . Alert | -11 -10 -9 -8 -8 -7 -6 ------- Run | Yrd Mat Mat Mat Gar Fac Fac Peak Influence 421 | . 85 285 143 421 374 168 Initial 220 | . . 35 108 95 220 168 Average 114 | . 51 137 124 227 306 48 Maximum Alert Level 2 | . . 1 . 2 1 . Low Security (%) 77 | 100 100 72 100 36 . 100 Level 1 22 | . . 27 . 60 100 . Level 2 . | . . . . 3 . . Level 3 . | . . . . . . . Level 4 . | . . . . . . . Level 5 . | . . . . . . . High Security . | . . . . . . . Max Security . | . . . . . . . Squads Dispatched 8 | . 2 1 . . 2 3 Investigation 1 | . . . . . 1 . Extermination 2 | . . . . . . 2 Reinforcement 5 | . 2 1 . . 1 1 Assault . | . . . . . . . Garrison . | . . . . . . . Intercept . | . . . . . . . Searches Triggered . | . . . . . . . Construction Impeded . | . . . . . . . Haulers Reinforced . | . . . . . . . Active Scanning Responses . | . . . . . . . Cargo Convoy Interrupts . | . . . . . . . Stealth | -11 -10 -9 -8 -8 -7 -6 --------- Run | Yrd Mat Mat Mat Gar Fac Fac Distress Signals . | . . . . . . . Communications Jammed 1 | . . . . . . 1 Distress Signals 1 | . . . . . . 1 Times Spotted 91 | . 5 18 1 24 12 31 Peak Tracking Total 8 | . 2 4 1 8 7 5 Tactical Retreats 14 | . . 1 . 4 1 8 Traps | -11 -10 -9 -8 -8 -7 -6 ------- Run | Yrd Mat Mat Mat Gar Fac Fac Traps Triggered 6 | . . 1 . 4 . 1 Indirectly . | . . . . . . . Trap Hack Attempts . | . . . . . . . Triggered . | . . . . . . . Disarmed . | . . . . . . . Reprogrammed . | . . . . . . . Reused . | . . . . . . . Traps Extracted . | . . . . . . . Installed . | . . . . . . . Triggered 1 | . . . . . . 1 Machines | -11 -10 -9 -8 -8 -7 -6 ---------- Run | Yrd Mat Mat Mat Gar Fac Fac Machines Disabled 4 | . . 1 . 3 . . Max in Single Turn 2 | . . 1 . 2 . . Garrison Relay 2 | . . . . 2 . . Phase Generator 1 | . . . . 1 . . Machines Repaired . | . . . . . . . Machines Dismantled . | . . . . . . . Machines Sabotaged . | . . . . . . . Overloaded Fab Kills . | . . . . . . . Hacking | -11 -10 -9 -8 -8 -7 -6 --------- Run | Yrd Mat Mat Mat Gar Fac Fac Machines Accessed 9 | . . . 1 1 2 5 Terminals 5 | . . . . 1 1 3 Fabricators 2 | . . . . . 1 1 Repair Stations . | . . . . . . . Recycling Units 1 | . . . . . . 1 Scanalyzers . | . . . . . . . Garrison Access 1 | . . . 1 . . . Total Hacks 17 | . . . 2 3 4 8 Successful 8 | . . . 1 1 2 4 Failed 9 | . . . 1 2 2 4 Catastrophic 1 | . . . . . 1 . Database Lockouts . | . . . . . . . Manual 2 | . . . . 1 . 1 Terminals 9 | . . . . 3 1 5 Fabricators 4 | . . . . . 3 1 Repair Stations . | . . . . . . . Recycling Units 2 | . . . . . . 2 Scanalyzers . | . . . . . . . Garrison Access 2 | . . . 2 . . . Terminal Hacks 5 | . . . . 1 1 3 Record 1 | . . . . . 1 . Open DSF 1 | . . . . . . 1 Alert Level 1 | . . . . . . 1 Unreport Threat 1 | . . . . . . 1 Security Stations 1 | . . . . 1 . . Fabricator Hacks 2 | . . . . . 1 1 Network Status 2 | . . . . . 1 1 Repair Station Hacks . | . . . . . . . Recycling Unit Hacks . | . . . . . . . Scanalyzer . | . . . . . . . Garrison Access Hacks 1 | . . . 1 . . . Unlock Access 1 | . . . 1 . . . Unauthorized Hacks . | . . . . . . . Terminals . | . . . . . . . Fabricators . | . . . . . . . Repair Stations . | . . . . . . . Recycling Units . | . . . . . . . Scanalyzers . | . . . . . . . Garrison Access . | . . . . . . . Data Cores Recovered . | . . . . . . . Used . | . . . . . . . Hacking Detections 8 | . . . 1 1 2 4 Full Trace Events 1 | . . . . . 1 . Feedback Events . | . . . . . . . Feedback Blocked . | . . . . . . . Robot Schematics Acquired . | . . . . . . . Robots Built . | . . . . . . . Authchips . | . . . . . . . Time . | . . . . . . . Total Robot Build Rating . | . . . . . . . Part Schematics Acquired . | . . . . . . . Parts Built . | . . . . . . . Authchips . | . . . . . . . Time . | . . . . . . . Total Part Build Rating . | . . . . . . . Parts Repaired . | . . . . . . . Time . | . . . . . . . Parts Recycled . | . . . . . . . Recycled Matter . | . . . . . . . Retrieved Matter . | . . . . . . . Retrieved Components . | . . . . . . . Parts Scanalyzed . | . . . . . . . Part Schematics Acquired . | . . . . . . . Parts Damaged . | . . . . . . . Bothacking | -11 -10 -9 -8 -8 -7 -6 ------------ Run | Yrd Mat Mat Mat Gar Fac Fac Used RIF Installer 1 | . . . . 1 . . Robots Hacked . | . . . . . . . Non-combat . | . . . . . . . Combat . | . . . . . . . Robot Hacks Applied . | . . . . . . . Relay Couplers Released 8 | . . . . 8 . . Machine Destruction 8 | . . . . 8 . . Attached 2 | . . . . 1 1 . Fabnet Peak Effective % . | . . . . . . . Robots Rewired . | . . . . . . . Allies Hacked . | . . . . . . . Hacks Repelled . | . . . . . . . Allies | -11 -10 -9 -8 -8 -7 -6 -------- Run | Yrd Mat Mat Mat Gar Fac Fac Total Allies . | . . . . . . . Largest Group . | . . . . . . . Highest-Rated Group . | . . . . . . . Highest-Rated Ally . | . . . . . . . Total Orders . | . . . . . . . Ally Attacks . | . . . . . . . Total Damage . | . . . . . . . Kills . | . . . . . . . Allies Corrupted . | . . . . . . . Allies Melted . | . . . . . . . Intel | -11 -10 -9 -8 -8 -7 -6 ------- Run | Yrd Mat Mat Mat Gar Fac Fac Robot Analysis Total . | . . . . . . . Derelict Logs Recovered . | . . . . . . . Drone Launches . | . . . . . . . Drone Recoveries . | . . . . . . . Exploration | -11 -10 -9 -8 -8 -7 -6 ------------- Run | Yrd Mat Mat Mat Gar Fac Fac Turns Passed 3930 | 75 329 618 132 551 377 1848 Spaces Moved 2651 | 59 267 442 99 561 476 747 Core 301 | 2 . . . 6 . 293 Treads 134 | . . . . . 15 119 Legs 219 | . . . . 18 43 158 Wheels 1251 | 57 267 360 45 241 130 151 Hover 204 | . . 82 54 59 . 9 Flight 542 | . . . . 237 288 17 Fastest Speed 26 | 50 90 66 95 26 26 50 Average Speed 116 | 99 97 95 111 64 62 211 Slowest Speed 550 | 100 100 126 131 120 190 550 Overloaded Moves . | . . . . . . . Propulsion Burnouts . | . . . . . . . Robots Hopped 1 | . . . . 1 . . Cave-ins Triggered . | . . . . . . . Exploration Rate (%) 25 | 4 39 39 12 55 11 20 Regions Visited 6 Branch Regions . Pre-discovered Areas . | . . . . . . . Known Exits Taken 1 | . . . 1 . . . Unknown Exits Taken 4 | 1 1 1 . . 1 . Scrap Searched . | . . . . . . . Spaces Dug . | . . . . . . . Terrain Destroyed 123 | . . 24 . 78 . 21 Melee . | . . . . . . . Projectile 3 | . . 3 . . . . AOE 120 | . . 21 . 78 . 21 Terrain Rammed . | . . . . . . . Walls Destroyed . | . . . . . . . Machines Disabled . | . . . . . . . Actions | -11 -10 -9 -8 -8 -7 -6 --------- Run | Yrd Mat Mat Mat Gar Fac Fac Total 3211 | 75 302 574 115 694 532 919 Wait 126 | . . 68 . 31 6 21 Move 2643 | 58 266 441 99 557 475 747 Hop 1 | . . . . 1 . . Pick Up 72 | 11 9 8 6 14 5 19 Fast Attach 48 | 1 2 1 3 7 12 22 Attach 44 | 5 . 8 1 18 2 10 Detach 1 | . . . . . . 1 Swap 22 | . 3 4 1 6 4 4 Drop 38 | . 5 6 3 1 10 13 Fire 168 | . 17 38 2 30 14 67 Melee 15 | . . . . 1 4 10 Ram 2 | . . . . . . 2 Kick . | . . . . . . . Crush 3 | . . . . . . 3 Escape Stasis 28 | . . . . 28 . . Rewire . | . . . . . . . Trap . | . . . . . . . Miscellaneous . | . . . . . . . Route ------- -11/Scrapyard -10/Materials -9/Materials -8/Materials -8/Garrison (discovered 2 exits: *Fac x2) -7/Factory -6/Factory History --------- Turn | Location | Event 2 | -11/Scrapyard | Met Revision 17 18 | -11/Scrapyard | Discovered new exit (range 16) 76 | -11/Scrapyard | Entered Materials 301 | -10/Materials | Build established: Mutant 389 | -10/Materials | Discovered new exit (range 16) 405 | -10/Materials | Entered another Materials area 405 | -9/Materials | Evolved 2 slots: Propulsion x2 921 | -9/Materials | Lost 4 parts (2n2w) 962 | -9/Materials | Discovered new exit (range 10) 1023 | -9/Materials | Entered another Materials area 1023 | -8/Materials | Evolved 2 slots: Power x1, Utility x1 1155 | -8/Materials | Identified exit to Garrison 1155 | -8/Materials | Entered Garrison 1205 | -8/Garrison | Triggered checkpoint 1235 | -8/Garrison | Triggered checkpoint 1308 | -8/Garrison | Discovered new exit (range 10) 1316 | -8/Garrison | Attempted to access garrison exit controls, blocked by remote lockdown 1355 | -8/Garrison | Triggered checkpoint 1363 | -8/Garrison | Garrison Relay disabled 1406 | -8/Garrison | Lost 3 parts (1p1n1w) 1466 | -8/Garrison | Phase Generator disabled 1487 | -8/Garrison | Learned Factory security intel 1543 | -8/Garrison | Lost 8 parts (1p4n2u1w) 1576 | -8/Garrison | Core integrity fell below 50% 1658 | -8/Garrison | Discovered new exit (range 12) 1660 | -8/Garrison | Installed Relay Interface Framework 1663 | -8/Garrison | Triggered checkpoint 1674 | -8/Garrison | Garrison Relay disabled 1706 | -8/Garrison | Entered Factory 1706 | -7/Factory | Evolved 2 slots: Propulsion x2 1872 | -7/Factory | Lost 3 parts (3n) 1995 | -7/Factory | Lost 5 parts (2p1n2u) 2062 | -7/Factory | Discovered new exit (range 15) 2083 | -7/Factory | Entered another Factory area 2083 | -6/Factory | Evolved 2 slots: Utility x2 2305 | -6/Factory | Lost 7 parts (3n1u3w) 2757 | -6/Factory | Lost 4 parts (1p2n1w) 2860 | -6/Factory | Core integrity fell below 50% 3611 | -6/Factory | Core integrity fell below 20% 3645 | -6/Factory | Lost 4 parts (1p2n1w) 3710 | -6/Factory | Lost 3 parts (1p1n1w) 3931 | -6/Factory | Destroyed by H-66 Slayer with Gauss Rifle Last Messages --------------- 03866_ Acquired Relay Coupler [Behemoth]. 03867_ Identified Gravity Neutralizer. 03867_ Faulty integration triggers energy drain (-200). 03868_ Dropped Faulty Gravity Neutralizer. 03869_ System corrupted: Heat flow error (+215). 03870_ Acquired Relay Coupler [Hunter]. 03883_ Acquired Remote Datajack. 03891_ Penetrated by Slug. 03893_ Acquired 12 matter. 03894_ 9QQ:8UCP0RDTNUR1XY2>SUJOC 03894_ Penetrated by Slug. 03894_ Slug penetrates Wall. 03895_ Penetrated by Slug. 03895_ U-05 Engineer destroyed. 03901_ Sneak attack on K-01 Serf. 03901_ Destroyed Lgt. Ion Engine. 03913_ Acquired Cmb. Airjet. 03916_ Slug penetrates Wall. 03928_ Remote Datajack destroyed. 03931_ Penetrated by Slug. Map ----- +----------------------------------------------------+ | ?????????????????????????????????????????????????? | | ?????????????????????????????????????????????????? | | ??????##############?????????????????????????????? | | ??????# #?????????????????????????????? | | ??????# #?????????????????????????????? | | ??????# #?????????????????????????????? | | ??????# #?????????????????????????????? | | ??????# #?????????????????????????????? | | ??????# ########??????????????????????? | | ??????# !/! # !#??????????????????????? | | ??????# ! # #??????????????????????? | | ??????# # ! #??????????????????????? | | ??????# # #??????????????????????? | | ?????## / # #??????????????????????? | | ????### # #??????????????????????? | | #############+########+####??????????????????????? | | h #??????????????????????? | | ! #####h #??????????????????????? | | # #?# #??????????????????????? | | ##??# #??????????????????????? | | ##??# #??????????????????????? | | ##??# #??????????????????????? | | ##??# #??????????????????????? | | ########## #???# #??????????????????????? | | ?????????# #???# #??????????????????????? | | ?????????# #???# @#??????????????????????? | | ?????????# #???# #?????????t????????????? | | ?????????#= #???# #??????????????????????? | | ?????????#%! #???# #??????????????????????? | | ?????????#*= #???# #??????????????????????? | | ?????????# #???# #?????????k????????????? | | ?????????? ????# ??????????????????????? | | ?????????? ???????# ####??????????????????????? | | ??????????? ?????????# ??????????????????????????? | | ?????????????????????# ???????????????u??????????? | | ?????????????????????# ??????????????????????????? | | ?????????????????????# ??????????????????????????? | | ?????????????????????# ??????????????????????????? | | ?????????????????????# ??????????????????????????? | | ?????????????????????????????????????????????????? | | ?????????????????????????????????????????????????? | | ?????????????????????????????????????????????????? | | ?????????????????????????????????????????????????? | | ?????????????????????????????????????????????????? | | ?????????????????????????????????????????????????? | | ###??????????????????????????????????????????????? | | #??????????????????????????????????????????????? | | #??????????????????????????????????????????????? | | #??????????????????????????????????????????????? | | #??????????????????????????????????????????????? | +----------------------------------------------------+ Best States ------------- Heat Dissipation 53 Energy Generation 31 Energy Capacity 340 Matter Stores 300 Matter Capacity 300 Sight Range 16 Robot Scan Range 16 Terrain Scan Density 10 Jamming Range 12 Cloak Strength 2 Additional Mass Support 6 Evasion (%) 64 Recoil Reduction 1 Offensive Hacking 10 Relay Coupler Types 1 Relay Coupler Value 23 Item Schematics ----------------- None Robot Schematics ------------------ None Fabricated ------------ Nothing Alien Tech Used ----------------- None Achievements -------------- None Challenges ------------ None Game ------ Seed SmallReactionRegenerator Manual? 0 Play Time 00:54:10 Cumulative 81.6 hours Start 2024.07.03 @ 11:52:02 End 2024.07.03 @ 13:09:20 Sessions 1 Manual Loads 0 Difficulty Rogue Special Mode None Game No. 119 Rogue 119 Adventurer 0 Explorer 0 Win Type - Total 0 Types 0/0/0/0/0/0/0/0/0 Lore% 39 Gallery% 52 Achievement% 34 Wizard Run 0 Options --------- Layout 0 ASCII 0 Keyboard 0 Movement Mouse Keybinds 0 Fullscreen 1 Font 24/Smallcaps Map View 76x50 Zoom Use 0% Tactical HUD 1 Map Filters NONE Filters NONE Steam 1 RUN: 4ac0f231-bfd4-4afc-9d43-1a2872ec4b4c